Cogmind - Beta 16 @@@ ROGUE MODE // 2025.12.29 @ 01:20:21 Player: JuustuToug Result: Destroyed by as-74890 with Assembled Rifle Performance ------------- Evolutions (0) 0 Regions Visited (4) 800 Robots Destroyed (30) 150 Value Destroyed (738) 738 Prototype IDs (3) 60 Alien Tech Used (0) 0 Bonus (85) 85 TOTAL SCORE: 1833 Bonus ------- Follower Combat Kills 85 Cogmind --------- Core Integrity 0/250 Matter 190/300 Energy 100/100 System Corruption 0% Temperature Cool (0) Movement Treading (240) Ox1 Location -9/Mines Parts ------- > --- POWER (1) -------- (None) > --- PROPULSION (2) --- Light Treads Improved Treads > --- UTILITY (2) ------ High-capacity Storage Unit > --- WEAPON (2) ------- Light Assault Rifle Light Cannon > --- INVENTORY (20) --- Improved Ion Engine Light Treads Light Treads Light Treads Light Treads Light Treads Improved Heat Sink High-capacity Matter Pod (200) Structural Scanner Machine Analyzer Signal Interpreter Terrain Scanner Tractor Beam Katana Peak State ------------ > --- POWER ------------ Light Angular Momentum Engine > --- PROPULSION ------- Improved Treads Improved Treads > --- UTILITY ---------- High-capacity Storage Unit Seismic Detector > --- WEAPON ----------- Medium Laser Heavy Assault Rifle > --- INVENTORY -------- Light Nuclear Core Light Treads Light Treads Light Treads Light Treads Light Treads Light Treads Light Treads Improved Treads Aluminum Leg Aluminum Leg Improved Heat Sink Improved Heat Sink High-capacity Matter Pod Structural Scanner Signal Interpreter Tractor Beam Light Assault Rifle Light Cannon Hammer [Rating: 16] Favorites ----------- Power Ion Engine Engine Ion Engine Power Core Light Nuclear Core Propulsion Improved Treads Treads Improved Treads Utility High-capacity Storage Unit Device Seismic Detector Storage High-capacity Storage Unit Weapon Medium Laser Energy Gun Medium Laser Ballistic Gun Heavy Assault Rifle Ballistic Cannon Light Cannon Launcher Grenade Launcher Impact Weapon Hammer Build | -11 -10 -10 -10 -9 ------- Run | Yrd Mat Min Exi Min Slots Evolved . | . . . . . Power . | . . . . . Propulsion . | . . . . . Utility . | . . . . . Weapon . | . . . . . Parts Attached 28 | 6 12 4 . 6 Power 4 | 1 1 2 . . Engine 3 | 1 1 1 . . Core 1 | . . 1 . . Reactor . | . . . . . Propulsion 9 | 2 4 . . 3 Treads 9 | 2 4 . . 3 Leg . | . . . . . Wheel . | . . . . . Hover . | . . . . . Flight . | . . . . . Utility 6 | 1 4 1 . . Device 2 | . 1 1 . . Storage 4 | 1 3 . . . Processor . | . . . . . Hackware . | . . . . . Protection . | . . . . . Artifact . | . . . . . Weapon 9 | 2 3 1 . 3 Energy Gun 2 | . 2 . . . Energy Cannon . | . . . . . Ballistic Gun 4 | 2 . 1 . 1 Ballistic Cannon 1 | . . . . 1 Launcher 1 | . . . . 1 Special Weapon . | . . . . . Impact Weapon 1 | . 1 . . . Slashing Weapon . | . . . . . Piercing Weapon . | . . . . . Special Melee Weapon . | . . . . . Unidentified Prototypes 1 | . 1 . . . Parts Lost 9 | . . 1 . 8 Power 1 | . . . . 1 Propulsion 3 | . . . . 3 Utility 2 | . . 1 . 1 Weapon 3 | . . . . 3 Highest Loss Streak 8 | . . 1 . 8 To Critical Strikes . | . . . . . Average Backups 18 | 1 16 19 20 19 Power 1 | . 1 1 1 1 Propulsion 8 | . 8 9 9 8 Utility 5 | . 4 5 6 6 Weapon 3 | . 3 3 4 3 Tool/Special . | . . . . . Unused Backups 20 | . 6 2 . 12 Power 2 | . . 1 . 1 Propulsion 10 | . 5 1 . 4 Utility 7 | . 1 . . 6 Weapon 1 | . . . . 1 Tool/Special . | . . . . . Average Slot Usage (%) 99 | . 98 99 100 97 Engine 7 | . 14 8 . . Core 5 | . . 5 14 13 Treads 28 | . 28 28 28 28 Device 13 | . 13 13 14 12 Storage 14 | . 14 14 14 14 Energy Gun 8 | . 1 14 14 12 Ballistic Gun 18 | . 26 14 14 14 Peak Build Rating 16 | 6 13 16 16 16 Average Rating 13 | 5 10 14 16 15 On Entrance 9 | . 6 11 16 16 Avg Prop Armor Cover (%) . | . . . . . Naked Turns . | . . . . . Heaviest Build 55 | 13 50 55 51 51 Greatest Support 46 | 40 46 46 46 46 Greatest Overweight (x) 1 | . 1 1 1 1 Average Overweight (x) . | . . 1 1 1 Largest Inventory Capacity 20 | 8 20 20 20 20 Average Capacity 19 | 7 19 20 20 20 Most Carried 20 | 3 20 20 20 20 Average Carried 18 | 1 16 19 20 19 Final Capacity 20 | 8 20 20 20 20 Final Carried 20 | 3 20 20 20 14 Class Distribution -------------------- 100% | Mutant Dominant Class ---------------- Mutant | -10/Materials Mutant | -10/Mines Mutant | -10/Exiles Mutant | -9/Mines Resources | -11 -10 -10 -10 -9 ----------- Run | Yrd Mat Min Exi Min Matter Collected 928 | 300 487 95 . 46 Remotely . | . . . . . Salvage Created 1264 | 136 602 295 . 231 Parts 68 | 6 35 12 . 15 Haulers Intercepted 2 | . 2 . . . Recyclers Shooed . | . . . . . Parts Field Recycled . | . . . . . Retrieved Matter . | . . . . . Parts Self-Destructed . | . . . . . Prevented . | . . . . . Parts Restored . | . . . . . Kills | -11 -10 -10 -10 -9 ------- Run | Yrd Mat Min Exi Min Combat Hostiles Destroyed 23 | . 8 6 . 9 Melee 1 | . . . . 1 Guns 17 | . 8 6 . 3 Cannons 3 | . . . . 3 AOE 2 | . . . . 2 Classes Destroyed 10 | 2 3 2 . 3 Worker 1 | . . 1 . . Builder 1 | . . . . 1 Tunneler 4 | 2 . . . 2 Hauler 2 | . 2 . . . Recycler 3 | 1 2 . . . Mechanic 1 | . . 1 . . Watcher 1 | . 1 . . . Grunt 16 | . 8 6 . 2 Duelist 1 | . . . . 1 Assembled 6 | . . . . 6 Best Kill Streak 4 | 3 4 3 . 2 Combat Bots Only 3 | . 3 2 . 2 Max Kills in Single Turn 2 | 1 1 1 . 2 Gunslinging . | . . . . . Exploded 2 | . . . . 2 Melee 1 | . . . . 1 Uniques/NPCs Destroyed . | . . . . . Combat | -11 -10 -10 -10 -9 -------- Run | Yrd Mat Min Exi Min Hostile Shots Fired 165 | . 49 28 . 88 Missed 41 | . 12 7 . 22 Hits 124 | . 37 21 . 66 Melee 11 | . . . . 11 Projectile 113 | . 37 21 . 55 Part Disruptions 1 | . . . . 1 Damage Taken 1832 | . 450 272 . 1110 Core 253 | . 71 36 . 146 Absorbed by Shields . | . . . . . Core Remaining (%) 100 | 100 . . . . Volleys Fired 103 | 10 38 23 . 32 Largest 2 | 2 2 2 . 2 Hottest 73 | 40 40 73 . 73 Shots Fired 198 | 20 76 46 . 56 Gun 180 | 20 76 46 . 38 Cannon 17 | . . . . 17 Launcher 1 | . . . . 1 Special . | . . . . . Kinetic 160 | 20 76 23 . 41 Thermal 37 | . . 23 . 14 Explosive 1 | . . . . 1 Electromagnetic . | . . . . . Robot Hit Streak 16 | 8 16 11 . 11 Robot Miss Streak 5 | 1 5 1 . 5 Penetration Max . | . . . . . Secondary Targets 1 | . 1 . . . Max Gunslinging Chain 1 | . 1 . . . Shots Hit Robots 133 | 16 49 35 . 33 Core Hits 69 | 4 25 16 . 24 Critical Kills . | . . . . . Critical Parts Destroyed . | . . . . . Critical Strikes 3 | . . 3 . . Burn 3 | . . 3 . . Melee Attacks 1 | . 1 . . . Impact 1 | . 1 . . . Slashing . | . . . . . Piercing . | . . . . . Sneak Attacks . | . . . . . Combat Hostiles . | . . . . . Follow-up Attacks . | . . . . . Damage Inflicted 1811 | 167 561 478 . 605 Guns 1537 | 167 546 478 . 346 Cannons 122 | . . . . 122 Explosions 133 | . . . . 133 Melee . | . . . . . Ramming 19 | . 15 . . 4 Kinetic 1319 | 167 546 275 . 331 Thermal 340 | . . 203 . 137 Explosive 133 | . . . . 133 Electromagnetic . | . . . . . Impact . | . . . . . Slashing . | . . . . . Piercing . | . . . . . Highest Corruption . | . . . . . Average Corruption . | . . . . . Corruption Purged . | . . . . . Corruption Blocked . | . . . . . Overload Shots . | . . . . . Overflow Damage . | . . . . . Projectiles . | . . . . . Explosions . | . . . . . Melee . | . . . . . Knockbacks 1 | . . . . 1 Impact . | . . . . . Kinetic 1 | . . . . 1 Secondary . | . . . . . Self-Inflicted Damage . | . . . . . Shots . | . . . . . Rammed 5 | . 2 . . 3 Targets Rammed 6 | . 2 . . 4 Kicked . | . . . . . Crushed 1 | . . . . 1 Highest Temperature 207 | . 21 207 . 20 Average Temperature 54 | . 9 83 . 12 Received Heat Transfer 557 | . 246 153 . 158 Siege Activations . | . . . . . Martial Activations . | . . . . . Shielding Activations . | . . . . . Robots Disrupted . | . . . . . Combat Hostiles . | . . . . . Robots Corrupted . | . . . . . Combat Hostiles . | . . . . . Parts Fried . | . . . . . Impact Corruptions . | . . . . . Robots Melted . | . . . . . Combat Hostiles . | . . . . . Parts Melted 4 | . . 4 . . Heat Transferred 1221 | . . 814 . 407 Parts Sabotaged . | . . . . . Parts Stolen . | . . . . . Parts Stripped . | . . . . . Power Chain Reactions . | . . . . . Alert | -11 -10 -10 -10 -9 ------- Run | Yrd Mat Min Exi Min Maximum Alert Level . | . . . . . Low Security (%) 100 | 100 100 100 . 100 Level 1 . | . . . . . Level 2 . | . . . . . Level 3 . | . . . . . Level 4 . | . . . . . Level 5 . | . . . . . High Security . | . . . . . Max Security . | . . . . . Peak Influence 78 | 10 72 78 . 50 Initial . | . . . . . Average 8 | 1 10 8 . 7 Influence Increases 602 | 15 265 205 . 117 Destroy 0b10 Robot/C 400 | . 160 160 . 80 Destroy 0b10 Robot/NC 65 | 15 25 10 . 15 Destroy Leader 86 | . 46 30 . 10 Allied During Kill 7 | . . 5 . 2 Successful Hack 19 | . 19 . . . Disable Machine 15 | . 15 . . . Destroy Structure 10 | . . . . 10 Influence Decreases 602 | 15 265 139 66 117 Entered New Map 66 | . . . 66 . Time Decay 516 | 15 265 129 . 107 Lost Part 20 | . . 10 . 10 Squads Dispatched 3 | . 2 1 . . Investigation 2 | . 2 . . . Extermination . | . . . . . Reinforcement . | . . . . . Assault 1 | . . 1 . . Garrison . | . . . . . Intercept . | . . . . . Searches Triggered . | . . . . . Construction Impeded . | . . . . . Haulers Reinforced . | . . . . . Active Scanning Responses . | . . . . . Cargo Convoy Interrupts . | . . . . . Stealth | -11 -10 -10 -10 -9 --------- Run | Yrd Mat Min Exi Min Distress Signals 3 | . 2 . . 1 Communications Jammed . | . . . . . Distress Signals . | . . . . . Times Spotted 50 | . 15 9 . 26 Peak Tracking Total 18 | . 4 3 . 18 Tactical Retreats 2 | . . . . 2 Traps | -11 -10 -10 -10 -9 ------- Run | Yrd Mat Min Exi Min Traps Triggered 2 | . 2 . . . Indirectly . | . . . . . Trap Hack Attempts . | . . . . . Triggered . | . . . . . Disarmed . | . . . . . Reprogrammed . | . . . . . Reused . | . . . . . Traps Extracted . | . . . . . Installed . | . . . . . Triggered . | . . . . . Machines | -11 -10 -10 -10 -9 ---------- Run | Yrd Mat Min Exi Min Machines Disabled 2 | . 2 . . . Max in Single Turn 1 | . 1 . . . Machines Repaired . | . . . . . Machines Dismantled . | . . . . . Machines Sabotaged . | . . . . . Overloaded Fab Kills . | . . . . . Hacking | -11 -10 -10 -10 -9 --------- Run | Yrd Mat Min Exi Min Machines Accessed 10 | . 9 . 1 . Terminals 8 | . 8 . . . Fabricators . | . . . . . Repair Stations 1 | . 1 . . . Recycling Units . | . . . . . Scanalyzers . | . . . . . Garrison Access . | . . . . . Total Hacks 30 | . 29 . 1 . Successful 15 | . 14 . 1 . Failed 15 | . 15 . . . Catastrophic 2 | . 2 . . . Database Lockouts . | . . . . . Manual 24 | . 24 . . . Terminals 27 | . 27 . . . Fabricators . | . . . . . Repair Stations 2 | . 2 . . . Recycling Units . | . . . . . Scanalyzers . | . . . . . Garrison Access . | . . . . . Terminal Hacks 5 | . 4 . 1 . Record 1 | . . . 1 . Prototype ID Bank 3 | . 3 . . . Terminal Index 1 | . 1 . . . Fabricator Hacks . | . . . . . Repair Station Hacks 1 | . 1 . . . Scan Component 1 | . 1 . . . Recycling Unit Hacks . | . . . . . Scanalyzer . | . . . . . Garrison Access Hacks . | . . . . . Unauthorized Hacks 9 | . 9 . . . Terminals 9 | . 9 . . . Botnet 3 | . 3 . . . Operators 1 | . 1 . . . Skim 5 | . 5 . . . Fabricators . | . . . . . Repair Stations . | . . . . . Recycling Units . | . . . . . Scanalyzers . | . . . . . Garrison Access . | . . . . . Data Cores Recovered . | . . . . . Used . | . . . . . Hacking Detections 9 | . 9 . . . Full Trace Events . | . . . . . Feedback Events . | . . . . . Feedback Blocked . | . . . . . Robot Schematics Acquired . | . . . . . Robots Built . | . . . . . Authchips . | . . . . . Time . | . . . . . Total Robot Build Rating . | . . . . . Part Schematics Acquired . | . . . . . Parts Built . | . . . . . Authchips . | . . . . . Time . | . . . . . Total Part Build Rating . | . . . . . Part Studies Acquired . | . . . . . Parts Repaired . | . . . . . Time . | . . . . . Parts Recycled . | . . . . . Recycled Matter . | . . . . . Retrieved Matter . | . . . . . Retrieved Components . | . . . . . Parts Scanalyzed . | . . . . . Part Schematics Acquired . | . . . . . Parts Damaged . | . . . . . Bothacking | -11 -10 -10 -10 -9 ------------ Run | Yrd Mat Min Exi Min Used RIF Installer . | . . . . . Robots Hacked . | . . . . . Non-combat . | . . . . . Combat . | . . . . . Robot Hacks Applied . | . . . . . Relay Couplers Released . | . . . . . Fabnet Peak Effective % . | . . . . . Robots Rewired . | . . . . . Allies Hacked . | . . . . . Hacks Repelled . | . . . . . Allies | -11 -10 -10 -10 -9 -------- Run | Yrd Mat Min Exi Min Total Allies 1 | . . 1 . . Largest Group 1 | . . 1 1 1 Highest-Rated Group 31 | . . 31 31 31 Highest-Rated Ally 31 | . . 31 31 31 Total Orders . | . . . . . Ally Attacks 16 | . . 11 . 5 Total Damage 211 | . . 150 . 61 Kills 3 | . . 2 . 1 Allies Corrupted . | . . . . . Allies Melted . | . . . . . Intel | -11 -10 -10 -10 -9 ------- Run | Yrd Mat Min Exi Min Active Infowar (turns) 2557 | . 1497 1060 . . Seismic 2557 | . 1497 1060 . . Robot Analysis Total . | . . . . . Derelict Logs Recovered 3 | . . 2 . 1 Drone Launches . | . . . . . Drone Recoveries . | . . . . . Exploration | -11 -10 -10 -10 -9 ------------- Run | Yrd Mat Min Exi Min Turns Passed 4087 | 111 1595 1120 485 776 Spaces Moved 1553 | 45 604 426 203 275 Core 1 | 1 . . . . Treads 1552 | 44 604 426 203 275 Legs . | . . . . . Wheels . | . . . . . Hover . | . . . . . Flight . | . . . . . Fastest Speed 50 | 50 160 240 240 240 Average Speed 235 | 157 234 240 240 240 Slowest Speed 240 | 160 240 240 240 240 Overloaded Moves . | . . . . . Propulsion Burnouts . | . . . . . Robots Hopped . | . . . . . Potential Cave-ins . | . . . . . Cave-ins Triggered . | . . . . . Exploration Rate (%) 64 | 3 95 84 63 75 Regions Visited 4 Branch Regions 3 Pre-discovered Areas 6 | . 2 2 1 1 Known Exits Taken 1 | . . . 1 . Unknown Exits Taken 3 | 1 1 1 . . Scrap Searched 2 | . . 1 . 1 Spaces Dug 9 | . . . . 9 Terrain Destroyed 9 | . . . . 9 Melee . | . . . . . Projectile . | . . . . . AOE 9 | . . . . 9 Terrain Rammed . | . . . . . Walls Destroyed . | . . . . . Machines Disabled . | . . . . . Actions | -11 -10 -10 -10 -9 --------- Run | Yrd Mat Min Exi Min Total 1800 | 64 720 482 202 332 Wait 48 | 1 19 20 . 8 Move 1549 | 44 603 425 202 275 Hop . | . . . . . Pick Up 38 | 3 28 4 . 3 Fast Attach 10 | 6 3 1 . . Attach 9 | . 2 1 . 6 Detach . | . . . . . Swap 12 | . 9 2 . 1 Drop 24 | . 15 6 . 3 Fire 103 | 10 38 23 . 32 Melee 1 | . 1 . . . Ram . | . . . . . Kick . | . . . . . Crush 6 | . 2 . . 4 Escape Stasis . | . . . . . Rewire . | . . . . . Trap . | . . . . . Miscellaneous . | . . . . . Route ------- -11/Scrapyard -10/Materials (discovered 5 exits: *Mat x3 / [*Min] / Sub) -10/Mines (discovered 4 exits: *Mat x2 / *Exi / Sub) -10/Exiles (discovered 2 exits: *Min x2) -9/Mines History --------- Turn | Location | Event 13 | -11/Scrapyard | Discovered new exit (range 16) 112 | -11/Scrapyard | Entered Materials 113 | -10/Materials | Met a group of wandering Federalists 307 | -10/Materials | Build established: Mutant 365 | -10/Materials | Discovered new exit (range 6) 843 | -10/Materials | Discovered new exit (range 13) 1243 | -10/Materials | Learned location of Mines (-10) 1293 | -10/Materials | Discovered new exit (range 16) 1317 | -10/Materials | Learned 2 Storage zone layouts 1336 | -10/Materials | Identified exit to Subcaves 1343 | -10/Materials | Learned 2 Storage zone layouts 1345 | -10/Materials | Learned location of Recycling (-9) 1346 | -10/Materials | Learned 2 Storage zone layouts 1347 | -10/Materials | Identified exit to Materials 1347 | -10/Materials | Learned location of 1 exit from Materials 1707 | -10/Materials | Entered Mines 1764 | -10/Mines | Joined a pair of Derelicts in attacking an 0b10 outpost 2197 | -10/Mines | Learned 2 Materials zone layouts 2255 | -10/Mines | Learned location of Storage (-9) 2385 | -10/Mines | Discovered exit to Materials (range 5) 2478 | -10/Mines | Learned location of Zion (-6) 2575 | -10/Mines | Discovered exit to Materials (range 11) 2699 | -10/Mines | Deemed a non-threat by the Exiles lab entrance 2699 | -10/Mines | Discovered new exit (range 5) 2746 | -10/Mines | Met a Derelict testing a Signal Generator 2827 | -10/Mines | Entered Exiles 2827 | -10/Exiles | Accompanied by 1 ally 2828 | -10/Exiles | Identified exit to Mines 2887 | -10/Exiles | Met 8R-AWN 2926 | -10/Exiles | Met EX-HEX 3012 | -10/Exiles | Met EX-BIN 3082 | -10/Exiles | Met EX-DEC 3312 | -10/Exiles | Entered Mines 3312 | -9/Mines | Accompanied by 1 ally 3980 | -9/Mines | Assembled infested the area 3985 | -9/Mines | Assisted by a Guerilla fighting off Assembled 4002 | -9/Mines | Core integrity fell below 50% 4060 | -9/Mines | Core integrity fell below 20% 4088 | -9/Mines | Destroyed by as-74890 with Assembled Rifle Last Messages --------------- 04000_ as-05161 destroyed. 04000_ Grenade Launcher destroyed. 04017_ Imp. Heat Sink destroyed. 04030_ Slammed into as-05831. 04032_ Imp. Treads destroyed. 04034_ Slammed into as-05831. 04035_ Med. Laser destroyed. 04036_ Crushed as-05831. 04036_ as-05831 destroyed. 04040_ Lgt. Nuclear Core destroyed. 04044_ Imp. Treads destroyed. 04050_ as-84123 destroyed. 04053_ Hvy. Assault Rifle destroyed. 04062_ as-23066 knocked back. 04063_ Acquired 1 matter. 04072_ as-25851 destroyed. 04074_ as-90871 destroyed. 04075_ Acquired 3 matter. 04078_ Lgt. Treads destroyed. 04083_ Slammed into as-19774. Map ----- +----------------------------------------------------+ | | | | | | | | | | | | | | | | | | | | | | | | | | | | | | | ?????????????????????????????????????????????????? | | ?????????????????????????????????????????????????? | | ????????????????#######??????????????##??????????? | | ???????????????## ##?????????### ##?????????? | | ??????#???????## #???????## # #???????? | | ??????# ####### ######### #???????? | | ??????# =%+! %! #???????? | | ??????# =+%= ##%######## %% #????????? | | ??????####### ### ##a#???????## #????????? | | ????????????## ##?# ##a#########?? #????????? | | ?????????????####### ## @aaaa ??????? | | ????????????????# ############????? #????? | | ????????????????# #####?????????????????## ##????? | | ????????????????# #????????????????????????#?????? | | ????????????????#=#??????????????????????????????? | | ?????????########=#??????????????????????????????? | | ?????????# * !%!=%#??????????????????????????????? | | ???#####?# /#######??????????????????????????????? | | ??## ### #????????????????????????????????????? | | ?## ## #????????????????????????????????????? | | ?# """ ## #????????????????????????????????????? | | ?# """ # ##???????????????????????????????????? | | ?# """ * ##### #?????????????????????????????? | | ?## % =% #?????????????????????????????? | | ?## ! #### #?????????????????????????????? | | ?# #??????????????????????????????????? | | ?# ##??????????????????????????????????? | | ?## #####???????????????????????????????????? | | ?## ####???????????????????????????????????????? | | ## ##??????????????????????????????????????????? | | # ##??###?????????????????????????????????????? | | ### ##????????????????????????????????????? | | ######### #????????###???????????????? | | #???????## #???????????????? | | #???????# ##??????????????? | +----------------------------------------------------+ Best States ------------- Heat Dissipation 39 Energy Generation 18 Energy Capacity 250 Matter Stores 300 Matter Capacity 300 Sight Range 16 Terrain Scan Density 10 Evasion (%) 40 Recoil Reduction 2 Item Schematics ----------------- None Robot Schematics ------------------ None Fabricated ------------ Nothing Repaired ---------- Nothing Studied --------- None Alien Tech Used ----------------- None Achievements -------------- None Challenges ------------ None Game ------ Seed DiametricDataAutopenetrator Manual? 0 Play Time 00:18:37 Cumulative 263.8 hours Start 2025.12.29 @ 01:01:18 End 2025.12.29 @ 01:20:21 Sessions 1 Manual Loads 0 Difficulty Rogue Special Mode None Game No. 176 Rogue 176 Adventurer 0 Explorer 0 Win Type - Total 8 Types 5/0/1/1/0/0/0/1/0/0 Lore% 89 Gallery% 79 Achievement% 63 Wizard Run 0 Options --------- Layout 1 ASCII 0 Keyboard 0 Movement Mouse Keybinds 0 Fullscreen 2 Font 24/Smallcaps Map View 50x35 Zoom Use 0% Tactical HUD 1 Map Filters NONE Filters NONE Steam 1 RUN: b5f7d8ad-4f0a-4918-ae35-619686fa2751